[Event "Titled Tuesday Blitz August 24 2021"]
[White "Maly, Alexey"]
[Black "Pastar, Slaven"]
[WhiteFideId "14103184"]
[BlackFideId "14402718"]
[WhiteElo "2250"]
[BlackElo "2150"]
[Result "1-0"]
[Round "05"]
[TimeControl "180+1"]
[Date "2021.08.24"]
[WhiteClock "0:01:35"]
[BlackClock "0:00:24"]

1. e4 {[%clk 0:03:00]}  e6 {[%clk 0:02:59]} 2. d3 {[%clk 0:03:00]}  b6 {[%clk 0:02:59]} 3. Nf3 {[%clk 0:02:58]}  Bb7 {[%clk 0:02:59]} 4. g3 {[%clk 0:02:58]}  d5 {[%clk 0:02:57]} 5. Nbd2 {[%clk 0:02:58]}  dxe4 {[%clk 0:02:55]} 6. dxe4 {[%clk 0:02:57]}  Nf6 {[%clk 0:02:56]} 7. Qe2 {[%clk 0:02:55]}  Ba6 {[%clk 0:02:50]} 8. c4 {[%clk 0:02:54]}  Bb4 {[%clk 0:02:38]} 9. Bg2 {[%clk 0:02:46]}  Bb7 {[%clk 0:02:25]} 10. O-O {[%clk 0:02:41]}  O-O {[%clk 0:02:25]} 11. e5 {[%clk 0:02:39]}  Nfd7 {[%clk 0:02:18]} 12. Ne4 {[%clk 0:02:38]}  Be7 {[%clk 0:02:06]} 13. Rd1 {[%clk 0:02:21]}  Qc8 {[%clk 0:01:59]} 14. h4 {[%clk 0:02:18]}  Na6 {[%clk 0:01:54]} 15. Bg5 {[%clk 0:02:16]}  Bxg5 {[%clk 0:01:48]} 16. hxg5 {[%clk 0:02:14]}  Nac5 {[%clk 0:01:37]} 17. Nf6+ {[%clk 0:02:03]}  gxf6 {[%clk 0:01:24]} 18. gxf6 {[%clk 0:02:04]}  Kh8 {[%clk 0:01:21]} 19. Ng5 {[%clk 0:01:40]}  Bxg2 {[%clk 0:01:00]} 20. Qh5 {[%clk 0:01:39]}  Be4 {[%clk 0:00:56]} 21. Qh6 {[%clk 0:01:39]}  Nxf6 {[%clk 0:00:24]} 22. exf6 {[%clk 0:01:35]} 1-0


[Site "https://www.chess.com"]

[Event "Titled Tuesday Blitz August 24 2021"]
[White "Manukyan, Sargis A."]
[Black "Ibrahimli, Murad"]
[WhiteFideId "13303970"]
[BlackFideId "13410229"]
[WhiteElo "2187"]
[BlackElo "2109"]
[Result "0-1"]
[Round "05"]
[TimeControl "180+1"]
[Date "2021.08.24"]
[WhiteClock "0:01:33"]
[BlackClock "0:01:22"]

1. d4 {[%clk 0:02:56]}  Nf6 {[%clk 0:02:58]} 2. c4 {[%clk 0:02:53]}  g6 {[%clk 0:02:57]} 3. Nc3 {[%clk 0:02:54]}  d5 {[%clk 0:02:57]} 4. Bf4 {[%clk 0:02:54]}  Bg7 {[%clk 0:02:57]} 5. e3 {[%clk 0:02:54]}  O-O {[%clk 0:02:56]} 6. Rc1 {[%clk 0:02:54]}  c5 {[%clk 0:02:56]} 7. dxc5 {[%clk 0:02:55]}  Be6 {[%clk 0:02:56]} 8. Nf3 {[%clk 0:02:55]}  Nc6 {[%clk 0:02:54]} 9. Ng5 {[%clk 0:02:55]}  Bg4 {[%clk 0:02:54]} 10. f3 {[%clk 0:02:54]}  e5 {[%clk 0:02:54]} 11. cxd5 {[%clk 0:02:41]}  exf4 {[%clk 0:02:35]} 12. dxc6 {[%clk 0:02:40]}  Qe7 {[%clk 0:02:35]} 13. Qe2 {[%clk 0:02:38]}  Bc8 {[%clk 0:02:15]} 14. e4 {[%clk 0:02:31]}  bxc6 {[%clk 0:02:12]} 15. Qf2 {[%clk 0:02:26]}  h6 {[%clk 0:01:50]} 16. Nh3 {[%clk 0:02:25]}  Bxh3 {[%clk 0:01:50]} 17. gxh3 {[%clk 0:02:26]}  Nd7 {[%clk 0:01:51]} 18. Na4 {[%clk 0:02:23]}  Ne5 {[%clk 0:01:49]} 19. Be2 {[%clk 0:02:20]}  Rfd8 {[%clk 0:01:48]} 20. O-O {[%clk 0:02:19]}  Nd3 {[%clk 0:01:47]} 21. Bxd3 {[%clk 0:02:19]}  Bd4 {[%clk 0:01:47]} 22. Bc4 {[%clk 0:01:57]}  Bxf2+ {[%clk 0:01:45]} 23. Rxf2 {[%clk 0:01:58]}  Rd4 {[%clk 0:01:45]} 24. b3 {[%clk 0:01:56]}  Rad8 {[%clk 0:01:44]} 25. Rcc2 {[%clk 0:01:54]}  Rd1+ {[%clk 0:01:44]} 26. Rf1 {[%clk 0:01:48]}  Rxf1+ {[%clk 0:01:42]} 27. Kxf1 {[%clk 0:01:47]}  Qh4 {[%clk 0:01:40]} 28. Kg2 {[%clk 0:01:45]}  Qe1 {[%clk 0:01:34]} 29. Re2 {[%clk 0:01:44]}  Rd2 {[%clk 0:01:32]} 30. Nc3 {[%clk 0:01:40]}  Qc1 {[%clk 0:01:23]} 31. Rxd2 {[%clk 0:01:36]}  Qxd2+ {[%clk 0:01:24]} 32. Ne2 {[%clk 0:01:36]}  Qxa2 {[%clk 0:01:24]} 33. Kf1 {[%clk 0:01:36]}  Qd2 {[%clk 0:01:24]} 34. h4 {[%clk 0:01:35]}  Qe3 {[%clk 0:01:24]} 35. Kg2 {[%clk 0:01:36]}  g5 {[%clk 0:01:24]} 36. hxg5 {[%clk 0:01:35]}  hxg5 {[%clk 0:01:25]} 37. h3 {[%clk 0:01:34]}  Qxc5 {[%clk 0:01:24]} 38. h4 {[%clk 0:01:33]}  gxh4 {[%clk 0:01:22]} 39. Nxf4 {[%clk 0:01:33]}  Qg5+ {[%clk 0:01:22]} 0-1


[Site "https://www.chess.com"]

[Event "Titled Tuesday Blitz August 24 2021"]
[White "Molina, Roberto Junio Brito"]
[Black "Harshavardhan G B"]
[WhiteFideId "2109450"]
[BlackFideId "25059009"]
[WhiteElo "2402"]
[BlackElo "1825"]
[Result "1-0"]
[Round "05"]
[TimeControl "180+1"]
[Date "2021.08.24"]
[WhiteClock "0:00:10"]
[BlackClock "0:00:29"]

1. d4 {[%clk 0:03:00]}  Nf6 {[%clk 0:02:56]} 2. c4 {[%clk 0:02:55]}  e5 {[%clk 0:02:55]} 3. dxe5 {[%clk 0:02:54]}  Ng4 {[%clk 0:02:55]} 4. Bf4 {[%clk 0:02:53]}  Nc6 {[%clk 0:02:54]} 5. Nf3 {[%clk 0:02:53]}  Bb4+ {[%clk 0:02:53]} 6. Nbd2 {[%clk 0:02:52]}  Qe7 {[%clk 0:02:53]} 7. e3 {[%clk 0:02:46]}  Ngxe5 {[%clk 0:02:46]} 8. Nxe5 {[%clk 0:02:46]}  Nxe5 {[%clk 0:02:47]} 9. a3 {[%clk 0:02:44]}  Bd6 {[%clk 0:02:42]} 10. Ne4 {[%clk 0:02:24]}  Nxc4 {[%clk 0:02:32]} 11. Nxd6+ {[%clk 0:02:24]}  Nxd6 {[%clk 0:02:30]} 12. Bxd6 {[%clk 0:02:21]}  Qxd6 {[%clk 0:02:28]} 13. Qxd6 {[%clk 0:02:20]}  cxd6 {[%clk 0:02:29]} 14. O-O-O {[%clk 0:02:20]}  Ke7 {[%clk 0:02:28]} 15. Be2 {[%clk 0:02:17]}  b6 {[%clk 0:02:27]} 16. Bf3 {[%clk 0:02:15]}  Rb8 {[%clk 0:02:27]} 17. Rd4 {[%clk 0:02:14]}  Bb7 {[%clk 0:02:26]} 18. Bxb7 {[%clk 0:02:12]}  Rxb7 {[%clk 0:02:27]} 19. Rc4 {[%clk 0:02:08]}  Kd8 {[%clk 0:02:23]} 20. Kd2 {[%clk 0:02:06]}  Rc7 {[%clk 0:02:21]} 21. Rxc7 {[%clk 0:02:04]}  Kxc7 {[%clk 0:02:22]} 22. Rc1+ {[%clk 0:02:04]}  Kb7 {[%clk 0:02:21]} 23. Kd3 {[%clk 0:02:04]}  Re8 {[%clk 0:02:13]} 24. Kd4 {[%clk 0:02:01]}  Re5 {[%clk 0:02:12]} 25. b4 {[%clk 0:01:58]}  a5 {[%clk 0:02:09]} 26. f4 {[%clk 0:01:56]}  Rh5 {[%clk 0:02:08]} 27. h3 {[%clk 0:01:54]}  axb4 {[%clk 0:02:05]} 28. axb4 {[%clk 0:01:54]}  Rb5 {[%clk 0:02:04]} 29. Rb1 {[%clk 0:01:46]}  Kc6 {[%clk 0:01:54]} 30. e4 {[%clk 0:01:45]}  Rh5 {[%clk 0:01:28]} 31. Rc1+ {[%clk 0:01:34]}  Kb7 {[%clk 0:01:26]} 32. Rc3 {[%clk 0:01:32]}  Rh6 {[%clk 0:01:14]} 33. Kd5 {[%clk 0:01:23]}  Re6 {[%clk 0:01:08]} 34. b5 {[%clk 0:01:13]}  g6 {[%clk 0:01:03]} 35. g4 {[%clk 0:01:12]}  Re8 {[%clk 0:00:56]} 36. Rc4 {[%clk 0:01:05]}  Re6 {[%clk 0:00:52]} 37. f5 {[%clk 0:00:41]}  gxf5 {[%clk 0:00:39]} 38. exf5 {[%clk 0:00:39]}  Re5+ {[%clk 0:00:24]} 39. Kxd6 {[%clk 0:00:39]}  Rxb5 {[%clk 0:00:25]} 40. Rc7+ {[%clk 0:00:20]}  Ka6 {[%clk 0:00:24]} 41. Rxd7 {[%clk 0:00:21]}  Rb3 {[%clk 0:00:24]} 42. Rxf7 {[%clk 0:00:21]}  Rxh3 {[%clk 0:00:23]} 43. Ke5 {[%clk 0:00:18]}  b5 {[%clk 0:00:23]} 44. f6 {[%clk 0:00:18]}  b4 {[%clk 0:00:21]} 45. Rf8 {[%clk 0:00:17]}  Kb7 {[%clk 0:00:20]} 46. Rd8 {[%clk 0:00:13]}  b3 {[%clk 0:00:19]} 47. Rd2 {[%clk 0:00:09]}  Rf3 {[%clk 0:00:19]} 48. Ke6 {[%clk 0:00:09]}  h6 {[%clk 0:00:17]} 49. f7 {[%clk 0:00:09]}  Kc6 {[%clk 0:00:17]} 50. Ke7 {[%clk 0:00:09]}  Re3+ {[%clk 0:00:17]} 51. Kf6 {[%clk 0:00:10]}  Rf3+ {[%clk 0:00:16]} 52. Kg7 {[%clk 0:00:10]}  Kc5 {[%clk 0:00:16]} 53. f8=Q+ {[%clk 0:00:10]}  Rxf8 {[%clk 0:00:16]} 54. Kxf8 {[%clk 0:00:11]}  Kc4 {[%clk 0:00:17]} 55. Kg7 {[%clk 0:00:11]}  Kc3 {[%clk 0:00:18]} 56. Rh2 {[%clk 0:00:11]}  b2 {[%clk 0:00:19]} 57. Rxb2 {[%clk 0:00:10]}  Kxb2 {[%clk 0:00:20]} 58. Kxh6 {[%clk 0:00:11]}  Kb1 {[%clk 0:00:21]} 59. g5 {[%clk 0:00:11]}  Kc2 {[%clk 0:00:22]} 60. g6 {[%clk 0:00:12]}  Kd3 {[%clk 0:00:23]} 61. Kg5 {[%clk 0:00:12]}  Ke4 {[%clk 0:00:24]} 62. Kf6 {[%clk 0:00:13]}  Kd5 {[%clk 0:00:24]} 63. g7 {[%clk 0:00:14]}  Ke4 {[%clk 0:00:24]} 64. g8=Q {[%clk 0:00:15]}  Kf3 {[%clk 0:00:25]} 65. Qe6 {[%clk 0:00:14]}  Kf4 {[%clk 0:00:25]} 66. Qe5+ {[%clk 0:00:15]}  Kg4 {[%clk 0:00:25]} 67. Ke6 {[%clk 0:00:16]}  Kh3 {[%clk 0:00:26]} 68. Kd5 {[%clk 0:00:16]}  Kh4 {[%clk 0:00:27]} 69. Qg7 {[%clk 0:00:17]}  Kh5 {[%clk 0:00:27]} 70. Ke4 {[%clk 0:00:17]}  Kh4 {[%clk 0:00:27]} 71. Kf4 {[%clk 0:00:18]}  Kh5 {[%clk 0:00:28]} 72. Qg4+ {[%clk 0:00:10]}  Kh6 {[%clk 0:00:26]} 73. Kf5 {[%clk 0:00:10]}  Kh7 {[%clk 0:00:27]} 74. Ke6 {[%clk 0:00:10]}  Kh8 {[%clk 0:00:28]} 75. Kf7 {[%clk 0:00:10]}  Kh7 {[%clk 0:00:29]} 76. Qg7# {[%clk 0:00:10]} 1-0


[Site "https://www.chess.com"]

[Event "Titled Tuesday Blitz August 24 2021"]
[White "Moon_stone123"]
[Black "Aldokhin, Ivan"]
[BlackFideId "24115720"]
[WhiteElo "2426"]
[BlackElo "2306"]
[Result "1/2-1/2"]
[Round "05"]
[TimeControl "180+1"]
[Date "2021.08.24"]
[WhiteClock "0:00:19"]
[BlackClock "0:00:09"]

1. Nf3 {[%clk 0:02:58]}  Nf6 {[%clk 0:02:55]} 2. g3 {[%clk 0:02:59]}  g6 {[%clk 0:02:55]} 3. Bg2 {[%clk 0:02:59]}  Bg7 {[%clk 0:02:55]} 4. O-O {[%clk 0:03:00]}  O-O {[%clk 0:02:54]} 5. c4 {[%clk 0:03:00]}  d5 {[%clk 0:02:53]} 6. cxd5 {[%clk 0:03:00]}  Nxd5 {[%clk 0:02:54]} 7. Nc3 {[%clk 0:03:01]}  Nxc3 {[%clk 0:02:53]} 8. dxc3 {[%clk 0:03:01]}  Nc6 {[%clk 0:02:50]} 9. Bg5 {[%clk 0:02:54]}  h6 {[%clk 0:02:48]} 10. Be3 {[%clk 0:02:53]}  e5 {[%clk 0:02:39]} 11. Qb3 {[%clk 0:02:37]}  Rb8 {[%clk 0:02:21]} 12. Bc5 {[%clk 0:02:24]}  Re8 {[%clk 0:02:21]} 13. Rad1 {[%clk 0:02:22]}  Qf6 {[%clk 0:02:18]} 14. Nd2 {[%clk 0:02:17]}  Be6 {[%clk 0:02:17]} 15. Qc2 {[%clk 0:02:15]}  g5 {[%clk 0:02:06]} 16. e4 {[%clk 0:01:43]}  Red8 {[%clk 0:01:36]} 17. Be3 {[%clk 0:01:41]}  a5 {[%clk 0:01:27]} 18. a4 {[%clk 0:01:36]}  b6 {[%clk 0:01:26]} 19. Nb1 {[%clk 0:01:30]}  h5 {[%clk 0:01:06]} 20. Qe2 {[%clk 0:01:28]}  h4 {[%clk 0:00:57]} 21. Qh5 {[%clk 0:01:22]}  Rxd1 {[%clk 0:00:42]} 22. Rxd1 {[%clk 0:01:21]}  hxg3 {[%clk 0:00:39]} 23. fxg3 {[%clk 0:01:21]}  g4 {[%clk 0:00:35]} 24. Rf1 {[%clk 0:01:07]}  Qg6 {[%clk 0:00:33]} 25. Qxg6 {[%clk 0:00:51]}  fxg6 {[%clk 0:00:34]} 26. Nd2 {[%clk 0:00:39]}  b5 {[%clk 0:00:34]} 27. axb5 {[%clk 0:00:37]}  Rxb5 {[%clk 0:00:35]} 28. Rb1 {[%clk 0:00:32]}  Bf8 {[%clk 0:00:14]} 29. Bf1 {[%clk 0:00:31]}  Rb8 {[%clk 0:00:14]} 30. Bc4 {[%clk 0:00:30]}  Kf7 {[%clk 0:00:14]} 31. Kf2 {[%clk 0:00:29]}  Bxc4 {[%clk 0:00:13]} 32. Nxc4 {[%clk 0:00:29]}  Ke6 {[%clk 0:00:13]} 33. Ke2 {[%clk 0:00:29]}  Be7 {[%clk 0:00:14]} 34. Rf1 {[%clk 0:00:26]}  Rb5 {[%clk 0:00:11]} 35. Ra1 {[%clk 0:00:22]}  Bf8 {[%clk 0:00:09]} 36. Rf1 {[%clk 0:00:20]}  Be7 {[%clk 0:00:09]} 37. Ra1 {[%clk 0:00:20]}  Kd7 {[%clk 0:00:09]} 38. Rd1+ {[%clk 0:00:19]}  Ke6 {[%clk 0:00:09]} 39. Ra1 {[%clk 0:00:19]} 1/2-1/2


[Site "https://www.chess.com"]

[Event "Titled Tuesday Blitz August 24 2021"]
[White "Nazaretyan, Tigran"]
[Black "Ibarra Jerez, Jose Carlos"]
[WhiteFideId "24162345"]
[BlackFideId "2226332"]
[WhiteElo "2167"]
[BlackElo "2602"]
[Result "1-0"]
[Round "05"]
[TimeControl "180+1"]
[Date "2021.08.24"]
[WhiteClock "0:00:05"]
[BlackClock "0:00:02"]

1. d4 {[%clk 0:01:44]}  Nf6 {[%clk 0:02:57]} 2. c4 {[%clk 0:01:44]}  d6 {[%clk 0:02:58]} 3. Nf3 {[%clk 0:01:43]}  g6 {[%clk 0:02:58]} 4. Nc3 {[%clk 0:01:43]}  Bf5 {[%clk 0:02:59]} 5. Ng5 {[%clk 0:01:42]}  Bd7 {[%clk 0:02:57]} 6. e4 {[%clk 0:01:42]}  e5 {[%clk 0:02:58]} 7. Nf3 {[%clk 0:01:39]}  exd4 {[%clk 0:02:57]} 8. Nxd4 {[%clk 0:01:39]}  Bg7 {[%clk 0:02:58]} 9. Be2 {[%clk 0:01:39]}  O-O {[%clk 0:02:58]} 10. O-O {[%clk 0:01:40]}  Re8 {[%clk 0:02:58]} 11. f3 {[%clk 0:01:40]}  Nc6 {[%clk 0:02:59]} 12. Nc2 {[%clk 0:01:40]}  Nh5 {[%clk 0:02:57]} 13. g4 {[%clk 0:01:40]}  Nf6 {[%clk 0:02:40]} 14. Bg5 {[%clk 0:01:39]}  Qc8 {[%clk 0:02:24]} 15. Qd2 {[%clk 0:01:38]}  Be6 {[%clk 0:02:17]} 16. Rac1 {[%clk 0:01:35]}  Nd7 {[%clk 0:02:13]} 17. b4 {[%clk 0:01:28]}  a5 {[%clk 0:02:05]} 18. b5 {[%clk 0:01:17]}  Nce5 {[%clk 0:02:04]} 19. Nd5 {[%clk 0:01:13]}  f6 {[%clk 0:01:50]} 20. Bh4 {[%clk 0:01:08]}  c6 {[%clk 0:01:49]} 21. Nde3 {[%clk 0:01:05]}  Nc5 {[%clk 0:01:32]} 22. Nd4 {[%clk 0:00:56]}  Bf7 {[%clk 0:01:27]} 23. bxc6 {[%clk 0:00:50]}  bxc6 {[%clk 0:01:27]} 24. Rb1 {[%clk 0:00:50]}  Qa6 {[%clk 0:01:24]} 25. Qc2 {[%clk 0:00:45]}  Rab8 {[%clk 0:01:10]} 26. Rfd1 {[%clk 0:00:42]}  Bh6 {[%clk 0:01:05]} 27. Bf2 {[%clk 0:00:40]}  a4 {[%clk 0:00:55]} 28. Qc3 {[%clk 0:00:34]}  Bxe3 {[%clk 0:00:35]} 29. Bxe3 {[%clk 0:00:33]}  Bxc4 {[%clk 0:00:35]} 30. Bxc4+ {[%clk 0:00:30]}  Qxc4 {[%clk 0:00:34]} 31. Qxc4+ {[%clk 0:00:29]}  Nxc4 {[%clk 0:00:35]} 32. Bf2 {[%clk 0:00:24]}  Ne5 {[%clk 0:00:30]} 33. Kg2 {[%clk 0:00:24]}  Ncd3 {[%clk 0:00:30]} 34. Bg1 {[%clk 0:00:21]}  c5 {[%clk 0:00:29]} 35. Nb5 {[%clk 0:00:20]}  Rb6 {[%clk 0:00:24]} 36. Nc3 {[%clk 0:00:19]}  Reb8 {[%clk 0:00:24]} 37. Kg3 {[%clk 0:00:17]}  g5 {[%clk 0:00:21]} 38. Be3 {[%clk 0:00:14]}  Rb2 {[%clk 0:00:19]} 39. Rxb2 {[%clk 0:00:14]}  Rxb2 {[%clk 0:00:18]} 40. Nd5 {[%clk 0:00:12]}  Kf7 {[%clk 0:00:15]} 41. f4 {[%clk 0:00:12]}  gxf4+ {[%clk 0:00:15]} 42. Nxf4 {[%clk 0:00:13]}  Nxf4 {[%clk 0:00:14]} 43. Bxf4 {[%clk 0:00:13]}  Ke6 {[%clk 0:00:14]} 44. Rd2 {[%clk 0:00:08]}  a3 {[%clk 0:00:12]} 45. h4 {[%clk 0:00:07]}  Nc4 {[%clk 0:00:12]} 46. Rf2 {[%clk 0:00:06]}  Ne5 {[%clk 0:00:09]} 47. g5 {[%clk 0:00:06]}  Nd3 {[%clk 0:00:08]} 48. Rf3 {[%clk 0:00:01]}  Nxf4 {[%clk 0:00:08]} 49. Rxf4 {[%clk 0:00:02]}  fxg5 {[%clk 0:00:08]} 50. hxg5 {[%clk 0:00:03]}  Rxa2 {[%clk 0:00:08]} 51. Rf6+ {[%clk 0:00:03]}  Ke5 {[%clk 0:00:09]} 52. Rh6 {[%clk 0:00:04]}  Rb2 {[%clk 0:00:07]} 53. Rxh7 {[%clk 0:00:04]}  a2 {[%clk 0:00:08]} 54. Ra7 {[%clk 0:00:05]}  Kxe4 {[%clk 0:00:05]} 55. g6 {[%clk 0:00:05]}  Kf5 {[%clk 0:00:05]} 56. g7 {[%clk 0:00:06]}  Rb8 {[%clk 0:00:05]} 57. Rf7+ {[%clk 0:00:05]}  Kg6 {[%clk 0:00:04]} 58. Rf8 {[%clk 0:00:05]}  Rb2 {[%clk 0:00:04]} 59. g8=Q+ {[%clk 0:00:04]}  Kh6 {[%clk 0:00:02]} 60. Rf6+ {[%clk 0:00:05]}  Kh5 {[%clk 0:00:02]} 61. Qg6# {[%clk 0:00:05]} 1-0


[Site "https://www.chess.com"]

[Event "Titled Tuesday Blitz August 24 2021"]
[White "Nesterov, Arseniy"]
[Black "Nakamura, Hikaru"]
[WhiteFideId "24198455"]
[BlackFideId "2016192"]
[WhiteElo "2477"]
[BlackElo "2900"]
[Result "0-1"]
[Round "05"]
[TimeControl "180+1"]
[Date "2021.08.24"]
[WhiteClock "0:00:09"]
[BlackClock "0:01:54"]

1. d4 {[%clk 0:03:00]}  g6 {[%clk 0:02:57]} 2. e4 {[%clk 0:03:00]}  Bg7 {[%clk 0:02:57]} 3. Nf3 {[%clk 0:03:00]}  a6 {[%clk 0:02:57]} 4. a4 {[%clk 0:02:59]}  c6 {[%clk 0:02:44]} 5. Bd3 {[%clk 0:02:54]}  d5 {[%clk 0:02:45]} 6. O-O {[%clk 0:02:42]}  Bg4 {[%clk 0:02:44]} 7. c3 {[%clk 0:02:39]}  Nd7 {[%clk 0:02:40]} 8. exd5 {[%clk 0:02:31]}  cxd5 {[%clk 0:02:40]} 9. Nbd2 {[%clk 0:02:31]}  e6 {[%clk 0:02:38]} 10. h3 {[%clk 0:02:30]}  Bxf3 {[%clk 0:02:36]} 11. Nxf3 {[%clk 0:02:31]}  Qc7 {[%clk 0:02:35]} 12. Bd2 {[%clk 0:02:17]}  Ne7 {[%clk 0:02:33]} 13. b3 {[%clk 0:02:17]}  O-O {[%clk 0:02:33]} 14. c4 {[%clk 0:02:15]}  Nc6 {[%clk 0:02:33]} 15. Rc1 {[%clk 0:02:07]}  Rac8 {[%clk 0:02:28]} 16. Be3 {[%clk 0:01:54]}  dxc4 {[%clk 0:02:15]} 17. bxc4 {[%clk 0:01:49]}  Rfd8 {[%clk 0:02:14]} 18. Qb3 {[%clk 0:01:40]}  e5 {[%clk 0:02:07]} 19. d5 {[%clk 0:01:29]}  Nd4 {[%clk 0:02:07]} 20. Nxd4 {[%clk 0:01:29]}  exd4 {[%clk 0:02:05]} 21. Bg5 {[%clk 0:01:28]}  Re8 {[%clk 0:02:03]} 22. Qc2 {[%clk 0:01:17]}  Nc5 {[%clk 0:02:01]} 23. Rfe1 {[%clk 0:01:17]}  Be5 {[%clk 0:01:59]} 24. Re2 {[%clk 0:01:06]}  Bh2+ {[%clk 0:01:58]} 25. Kf1 {[%clk 0:01:00]}  Bf4 {[%clk 0:01:59]} 26. Bxf4 {[%clk 0:00:55]}  Qxf4 {[%clk 0:02:00]} 27. Rxe8+ {[%clk 0:00:50]}  Rxe8 {[%clk 0:02:00]} 28. Re1 {[%clk 0:00:50]}  Rxe1+ {[%clk 0:01:58]} 29. Kxe1 {[%clk 0:00:51]}  a5 {[%clk 0:01:58]} 30. Ke2 {[%clk 0:00:42]}  Qe5+ {[%clk 0:01:58]} 31. Kf1 {[%clk 0:00:40]}  Qe8 {[%clk 0:01:58]} 32. g3 {[%clk 0:00:20]}  Qxa4 {[%clk 0:01:57]} 33. Qb1 {[%clk 0:00:15]}  Qb3 {[%clk 0:01:55]} 34. Qxb3 {[%clk 0:00:14]}  Nxb3 {[%clk 0:01:55]} 35. d6 {[%clk 0:00:13]}  Kf8 {[%clk 0:01:55]} 36. Ke2 {[%clk 0:00:10]}  Nc5 {[%clk 0:01:54]} 37. Bc2 {[%clk 0:00:09]}  Ke8 {[%clk 0:01:54]} 0-1


[Site "https://www.chess.com"]

[Event "Titled Tuesday Blitz August 24 2021"]
[White "Papasimakopoulos, Alexandros"]
[Black "Ivanchuk, Vasyl"]
[WhiteFideId "4244125"]
[BlackFideId "14100010"]
[WhiteElo "2352"]
[BlackElo "2710"]
[Result "1-0"]
[Round "05"]
[TimeControl "180+1"]
[Date "2021.08.24"]
[WhiteClock "0:00:06"]
[BlackClock "0:00:18"]

1. d4 {[%clk 0:03:00]}  Nf6 {[%clk 0:02:59]} 2. c4 {[%clk 0:03:00]}  e6 {[%clk 0:02:59]} 3. Nc3 {[%clk 0:03:00]}  Bb4 {[%clk 0:02:58]} 4. Qc2 {[%clk 0:03:00]}  O-O {[%clk 0:02:56]} 5. a3 {[%clk 0:03:00]}  Bxc3+ {[%clk 0:02:56]} 6. Qxc3 {[%clk 0:03:00]}  b6 {[%clk 0:02:57]} 7. Bg5 {[%clk 0:02:58]}  Bb7 {[%clk 0:02:57]} 8. f3 {[%clk 0:02:58]}  h6 {[%clk 0:02:57]} 9. Bh4 {[%clk 0:02:58]}  d5 {[%clk 0:02:57]} 10. e3 {[%clk 0:02:59]}  Nbd7 {[%clk 0:02:57]} 11. cxd5 {[%clk 0:02:59]}  Nxd5 {[%clk 0:02:57]} 12. Bxd8 {[%clk 0:03:00]}  Nxc3 {[%clk 0:02:57]} 13. Bh4 {[%clk 0:03:01]}  Nd5 {[%clk 0:02:57]} 14. Bf2 {[%clk 0:03:01]}  Ne7 {[%clk 0:02:48]} 15. Ne2 {[%clk 0:02:56]}  c5 {[%clk 0:02:45]} 16. e4 {[%clk 0:02:56]}  Rac8 {[%clk 0:02:31]} 17. Nc3 {[%clk 0:02:26]}  cxd4 {[%clk 0:02:27]} 18. Bxd4 {[%clk 0:02:27]}  Nc6 {[%clk 0:02:27]} 19. Be3 {[%clk 0:02:20]}  Nde5 {[%clk 0:02:14]} 20. f4 {[%clk 0:02:00]}  Ng4 {[%clk 0:02:10]} 21. Bg1 {[%clk 0:01:55]}  Rfd8 {[%clk 0:02:07]} 22. Be2 {[%clk 0:01:45]}  Nf6 {[%clk 0:02:03]} 23. e5 {[%clk 0:01:45]}  Nd5 {[%clk 0:01:43]} 24. Nxd5 {[%clk 0:01:35]}  Rxd5 {[%clk 0:01:43]} 25. Bf3 {[%clk 0:01:36]}  Rdd8 {[%clk 0:01:33]} 26. Be3 {[%clk 0:01:22]}  Na5 {[%clk 0:01:29]} 27. Bxb7 {[%clk 0:01:22]}  Nxb7 {[%clk 0:01:29]} 28. Rc1 {[%clk 0:01:19]}  Rxc1+ {[%clk 0:01:17]} 29. Bxc1 {[%clk 0:01:20]}  Rc8 {[%clk 0:01:17]} 30. Kd1 {[%clk 0:01:05]}  Nc5 {[%clk 0:01:09]} 31. Kc2 {[%clk 0:00:37]}  Ne4+ {[%clk 0:01:09]} 32. Kb3 {[%clk 0:00:32]}  Kf8 {[%clk 0:00:59]} 33. Be3 {[%clk 0:00:31]}  Ke7 {[%clk 0:00:55]} 34. Rd1 {[%clk 0:00:31]}  Nc5+ {[%clk 0:00:51]} 35. Kb4 {[%clk 0:00:29]}  Nd7 {[%clk 0:00:51]} 36. Kb5 {[%clk 0:00:26]}  Rc2 {[%clk 0:00:43]} 37. Rd2 {[%clk 0:00:26]}  Rc7 {[%clk 0:00:43]} 38. Rd1 {[%clk 0:00:22]}  Rc2 {[%clk 0:00:43]} 39. Rd2 {[%clk 0:00:21]}  Rc7 {[%clk 0:00:43]} 40. a4 {[%clk 0:00:20]}  Kd8 {[%clk 0:00:37]} 41. b4 {[%clk 0:00:20]}  Kc8 {[%clk 0:00:35]} 42. Rd1 {[%clk 0:00:19]}  Kb7 {[%clk 0:00:35]} 43. a5 {[%clk 0:00:16]}  a6+ {[%clk 0:00:34]} 44. Ka4 {[%clk 0:00:17]}  b5+ {[%clk 0:00:33]} 45. Kb3 {[%clk 0:00:17]}  Rc4 {[%clk 0:00:33]} 46. Rxd7+ {[%clk 0:00:17]}  Kc6 {[%clk 0:00:24]} 47. Rxf7 {[%clk 0:00:14]}  Kd5 {[%clk 0:00:24]} 48. Rxg7 {[%clk 0:00:12]}  Ke4 {[%clk 0:00:24]} 49. Bc5 {[%clk 0:00:12]}  Kxf4 {[%clk 0:00:23]} 50. Ra7 {[%clk 0:00:11]}  Kxe5 {[%clk 0:00:21]} 51. Rxa6 {[%clk 0:00:11]}  Re4 {[%clk 0:00:20]} 52. Rd6 {[%clk 0:00:11]}  Re2 {[%clk 0:00:19]} 53. a6 {[%clk 0:00:10]}  Rxg2 {[%clk 0:00:18]} 54. Rd8 {[%clk 0:00:07]}  Rxh2 {[%clk 0:00:18]} 55. Bd6+ {[%clk 0:00:06]} 1-0


[Site "https://www.chess.com"]

[Event "Titled Tuesday Blitz August 24 2021"]
[White "Polivanov, Anatoliy"]
[Black "Ponikarovsky, Alexey"]
[WhiteFideId "14109468"]
[BlackFideId "4122887"]
[WhiteElo "2472"]
[BlackElo "1944"]
[Result "0-1"]
[Round "05"]
[TimeControl "180+1"]
[Date "2021.08.24"]
[WhiteClock "0:01:33"]
[BlackClock "0:02:02"]

1. d4 {[%clk 0:03:00]}  d5 {[%clk 0:02:59]} 2. Bg5 {[%clk 0:03:00]}  Nf6 {[%clk 0:02:59]} 3. e3 {[%clk 0:02:59]}  e6 {[%clk 0:02:59]} 4. Nf3 {[%clk 0:02:58]}  Bb4+ {[%clk 0:02:59]} 5. c3 {[%clk 0:02:58]}  Be7 {[%clk 0:03:00]} 6. Nbd2 {[%clk 0:02:56]}  Ne4 {[%clk 0:03:00]} 7. Bxe7 {[%clk 0:02:53]}  Qxe7 {[%clk 0:03:00]} 8. Nxe4 {[%clk 0:02:53]}  dxe4 {[%clk 0:03:01]} 9. Nd2 {[%clk 0:02:54]}  f5 {[%clk 0:03:01]} 10. f3 {[%clk 0:02:54]}  exf3 {[%clk 0:03:00]} 11. Nxf3 {[%clk 0:02:53]}  O-O {[%clk 0:03:01]} 12. Bd3 {[%clk 0:02:53]}  b6 {[%clk 0:03:01]} 13. e4 {[%clk 0:02:48]}  Bb7 {[%clk 0:02:59]} 14. Qe2 {[%clk 0:02:48]}  f4 {[%clk 0:02:54]} 15. O-O {[%clk 0:02:45]}  Nd7 {[%clk 0:02:52]} 16. Rae1 {[%clk 0:02:44]}  c5 {[%clk 0:02:49]} 17. e5 {[%clk 0:02:38]}  cxd4 {[%clk 0:02:45]} 18. cxd4 {[%clk 0:02:37]}  g6 {[%clk 0:02:39]} 19. Be4 {[%clk 0:02:34]}  Rab8 {[%clk 0:02:32]} 20. Bxb7 {[%clk 0:02:33]}  Rxb7 {[%clk 0:02:31]} 21. Qe4 {[%clk 0:02:33]}  Rc7 {[%clk 0:02:21]} 22. Rc1 {[%clk 0:02:21]}  Nb8 {[%clk 0:02:20]} 23. d5 {[%clk 0:02:15]}  Rxc1 {[%clk 0:02:17]} 24. Rxc1 {[%clk 0:02:15]}  Qb7 {[%clk 0:02:17]} 25. Nd4 {[%clk 0:01:51]}  Qxd5 {[%clk 0:02:15]} 26. Qxd5 {[%clk 0:01:51]}  exd5 {[%clk 0:02:16]} 27. e6 {[%clk 0:01:49]}  Re8 {[%clk 0:02:10]} 28. Rc7 {[%clk 0:01:46]}  Na6 {[%clk 0:02:10]} 29. e7 {[%clk 0:01:33]}  Nxc7 {[%clk 0:02:02]} 0-1


[Site "https://www.chess.com"]